bitfinex-derivatives/quotes_BTCF0:USTF0_20240824
["timestamp","ask_amount","ask_price","bid_price","bid_amount"]
[1724471504042,0.0494,63873.0,63871.0,0.001]
[1724471504451,0.0494,63873.0,63871.0,0.079227]
[1724471504642,0.0494,63873.0,63871.0,0.080227]
[1724471504841,0.0494,63873.0,63871.0,0.079227]
[1724471505549,0.0494,63873.0,63871.0,0.080227]
[1724471506143,0.0494,63873.0,63871.0,0.079227]
[1724471506338,0.0494,63873.0,63871.0,0.080227]
[1724471506952,0.0102765,63873.0,63871.0,0.080227]
[1724471507252,0.626132,63872.0,63871.0,0.06431764]
[1724471507446,0.626132,63872.0,63871.0,0.002]
[1724471507643,1.026132,63872.0,63871.0,0.002]
[1724471509752,1.026132,63872.0,63860.0,0.07847491]
[1724471509753,0.46972,63871.0,63866.0,0.04054457]
[1724471509946,1.24523,63864.0,63863.0,5.7e-07]
[1724471510148,0.078239,63861.0,63860.0,0.00023491]
[1724471510547,1.026238,63861.0,63860.0,0.00023491]
[1724471510946,1.025278,63861.0,63860.0,0.00023491]
[1724471512756,1.03134492,63861.0,63860.0,0.00023491]
[1724471512947,1.03234492,63861.0,63860.0,0.00023491]
[1724471513443,1.03334492,63861.0,63860.0,0.00023491]
[1724471513643,1.03434492,63861.0,63860.0,0.00123491]
[1724471514047,1.03334492,63861.0,63860.0,0.00123491]
[1724471514243,1.03734492,63861.0,63860.0,0.00223491]
[1724471515251,1.03634492,63861.0,63860.0,0.00223491]
[1724471516351,0.63634492,63861.0,63860.0,0.00223491]
[1724471516552,1.03634492,63861.0,63860.0,0.00223491]
[1724471520358,1.08134492,63861.0,63860.0,0.00223491]
[1724471521362,0.68134492,63861.0,63860.0,0.00223491]
[1724471523552,0.7279089,63861.0,63860.0,0.00223491]
[1724471524064,0.68134492,63861.0,63860.0,0.00223491]
[1724471524664,0.2581489,63861.0,63860.0,0.00223491]
[1724471524857,0.13334592,63861.0,63860.0,0.00223491]
[1724471526558,0.08834592,63861.0,63860.0,0.00223491]
[1724471528862,0.08834592,63861.0,63860.0,0.02669341]
[1724471530068,0.44914592,63861.0,63860.0,0.02669341]
[1724471531066,0.44914592,63861.0,63860.0,0.00223491]
[1724471531972,0.52738492,63861.0,63860.0,0.00223491]
[1724471534473,0.5739489,63861.0,63860.0,0.00223491]
[1724471534871,0.16658492,63861.0,63860.0,0.00223491]
[1724471535073,0.52738492,63861.0,63860.0,0.00223491]
[1724471535280,0.16658492,63861.0,63860.0,0.00223491]
[1724471535473,0.5739489,63861.0,63860.0,0.00223491]
[1724471536572,0.52738492,63861.0,63860.0,0.00223491]
[1724471538579,0.22885762,63861.0,63860.0,0.00223491]
[1724471538784,0.52738492,63861.0,63860.0,0.00223491]
[1724471539385,1.47538392,63861.0,63860.0,9.1e-07]
[1724471539685,1.47538392,63861.0,63846.0,0.09376886]
[1724471539686,0.078251,63851.0,63850.0,0.07806368]
[1724471539879,0.07826,63844.0,63843.0,0.0461]
[1724471540078,0.43906,63844.0,63843.0,0.0461]
[1724471540283,0.48580042,63844.0,63843.0,0.0461]
[1724471540584,0.51736,63844.0,63843.0,0.0461]
[1724471541678,0.077266,63839.0,63838.0,0.0462]
[1724471541876,0.516332,63839.0,63838.0,0.0462]
[1724471542078,0.516332,63839.0,63838.0,0.07066621]
[1724471542273,0.515332,63839.0,63838.0,0.0462]
[1724471542474,0.515372,63839.0,63838.0,0.0462]
[1724471543381,0.515372,63839.0,63838.0,0.0492]
[1724471543580,0.515372,63839.0,63838.0,0.0552]
[1724471544285,0.515372,63839.0,63838.0,0.0522]
[1724471547283,0.437106,63839.0,63838.0,0.0522]
[1724471549585,0.437106,63839.0,63838.0,0.07666621]
[1724471551589,0.437106,63839.0,63838.0,0.03046621]
[1724471552884,0.437106,63839.0,63838.0,0.006]
[1724471555800,0.076306,63839.0,63838.0,0.06960994]
[1724471556682,0.076306,63839.0,63838.0,0.0696093]
[1724471557289,0.076306,63839.0,63838.0,0.03046511]
[1724471558388,0.076306,63839.0,63838.0,0.006]
[1724471558791,0.076306,63839.0,63838.0,0.03046597]
[1724471561300,0.076306,63839.0,63838.0,0.06961064]
[1724471562588,0.076306,63839.0,63838.0,0.03046597]
[1724471564401,0.076306,63839.0,63838.0,0.06961062]
[1724471565397,0.076306,63839.0,63838.0,0.06961005]
[1724471565790,0.076306,63839.0,63838.0,0.006]
[1724471565993,0.076306,63839.0,63838.0,0.06961004]
[1724471567596,0.076306,63839.0,63838.0,0.08918097]
[1724471567906,0.076306,63839.0,63838.0,0.06961004]
[1724471568294,4e-05,63839.0,63838.0,0.14787804]
[1724471568602,4e-05,63839.0,63838.0,0.24551206]
[1724471568803,4e-05,63839.0,63838.0,0.36475393]
[1724471569401,4e-05,63839.0,63838.0,0.28669025]
[1724471569603,0.078306,63839.0,63838.0,0.28669025]
[1724471569991,0.078306,63839.0,63838.0,0.26711991]
[1724471571504,0.078306,63839.0,63838.0,0.28669136]
[1724471571898,0.078306,63839.0,63838.0,0.20350987]
[1724471572093,0.078306,63839.0,63838.0,0.22308135]
[1724471572393,0.078306,63839.0,63838.0,0.28668928]
[1724471575800,0.078306,63839.0,63838.0,0.20351047]
[1724471576001,0.078306,63839.0,63838.0,0.28668796]
[1724471578611,0.078306,63839.0,63838.0,0.26711786]
[1724471578906,0.078306,63839.0,63838.0,0.28668936]
[1724471580005,0.078306,63839.0,63838.0,0.28668932]
[1724471581206,0.078306,63839.0,63838.0,0.26711783]
[1724471581403,0.078306,63839.0,63838.0,0.20842165]
[1724471582616,0.078306,63839.0,63838.0,0.16927866]
[1724471584015,0.12499648,63839.0,63838.0,0.16927866]
[1724471584617,0.20326248,63839.0,63838.0,0.12524247]
[1724471584805,0.20326248,63839.0,63838.0,0.03046758]
[1724471584806,0.156572,63839.0,63838.0,0.03046758]
[1724471586313,0.156572,63839.0,63838.0,0.05004148]
[1724471588315,0.156572,63839.0,63838.0,0.05004121]
[1724471589215,0.078306,63839.0,63838.0,0.05004121]
[1724471589411,0.078306,63839.0,63838.0,0.24755531]
[1724471589412,0.12502799,63839.0,63838.0,0.24755531]
[1724471589614,0.078306,63839.0,63838.0,0.24755531]
[1724471590509,0.078306,63839.0,63838.0,0.24755231]
[1724471591717,4e-05,63839.0,63838.0,0.2035111]
[1724471591912,4e-05,63839.0,63838.0,0.22308306]
[1724471592115,4e-05,63839.0,63838.0,0.24754801]
[1724471595114,4e-05,63839.0,63838.0,0.247548]
[1724471595513,4e-05,63839.0,63838.0,0.22308254]
[1724471595721,4e-05,63839.0,63838.0,0.24754748]
[1724471598320,4e-05,63839.0,63838.0,0.20350806]
[1724471598518,4e-05,63839.0,63838.0,0.22797167]
[1724471598720,4e-05,63839.0,63838.0,0.24754256]
[1724471600628,4e-05,63839.0,63838.0,0.22307849]
[1724471600819,4e-05,63839.0,63838.0,0.24754172]
[1724471601627,4e-05,63839.0,63838.0,0.2035076]
[1724471601826,4e-05,63839.0,63838.0,0.24754325]
[1724471605426,4e-05,63839.0,63838.0,0.22308251]
[1724471605625,4e-05,63839.0,63838.0,0.24754676]
[1724471606524,0.078266,63840.0,63838.0,0.34131562]
[1724471606825,0.078266,63840.0,63839.0,0.16327876]
[1724471608028,0.078266,63840.0,63839.0,0.16527876]
[1724471608417,0.078266,63840.0,63839.0,0.24354476]
[1724471609430,0.078266,63840.0,63839.0,0.24554476]
[1724471609929,0.078266,63840.0,63839.0,0.16727876]
[1724471610124,0.078266,63840.0,63839.0,0.16727698]
[1724471610525,0.12498799,63840.0,63839.0,0.16727698]
[1724471611227,0.12498799,63840.0,63839.0,0.16727869]
[1724471611630,0.12498799,63840.0,63839.0,0.14281444]
[1724471611834,0.12498799,63840.0,63839.0,0.16727869]
[1724471612126,0.078266,63840.0,63839.0,0.16727869]
[1724471616326,0.078266,63840.0,63839.0,0.16727852]
[1724471616824,0.078266,63840.0,63839.0,0.16727829]
[1724471617637,0.078266,63840.0,63839.0,0.24554429]
[1724471618430,0.078266,63840.0,63839.0,0.20150904]
[1724471618632,0.078266,63840.0,63839.0,0.2455443]
[1724471620237,0.078266,63840.0,63839.0,0.24554097]
[1724471624239,0.078266,63840.0,63839.0,0.12630126]
[1724471624433,0.078266,63840.0,63839.0,0.24554094]
[1724471625231,0.078266,63840.0,63839.0,0.22596971]
[1724471625434,0.078266,63840.0,63839.0,0.24554093]
[1724471625735,0.04672199,63843.0,63839.0,0.16727493]
[1724471625941,0.04672199,63842.0,63841.0,0.078264]
[1724471626236,0.42392056,63846.0,63843.0,0.078261]
[1724471626537,0.42312056,63846.0,63844.0,0.04403525]
[1724471626739,0.42312056,63846.0,63845.0,0.04403525]
[1724471626938,0.42312056,63846.0,63845.0,0.0440345]
[1724471627140,0.50137856,63846.0,63845.0,0.0440345]
[1724471627542,0.14057856,63846.0,63845.0,0.0440345]
[1724471627738,0.14357856,63846.0,63845.0,0.0440345]
[1724471628438,0.081258,63846.0,63845.0,0.0440345]
[1724471628639,0.081258,63846.0,63844.0,0.43906]
[1724471628640,0.078259,63845.0,63844.0,0.43906]
[1724471628936,0.078259,63845.0,63844.0,0.51732474]
[1724471629141,0.078259,63845.0,63844.0,0.56135623]
[1724471629845,0.084259,63845.0,63844.0,0.56135623]
[1724471630238,0.084259,63845.0,63844.0,0.48309149]
[1724471631140,0.084259,63845.0,63844.0,0.48932487]
[1724471631935,0.084259,63845.0,63844.0,0.48932446]
[1724471632540,0.05272965,63845.0,63844.0,0.6868254]
[1724471632753,0.006,63845.0,63844.0,0.60856066]
[1724471633140,0.006,63845.0,63844.0,0.70232952]
[1724471633439,0.006,63845.0,63844.0,0.70232825]
[1724471634941,0.006,63845.0,63844.0,0.60854766]
[1724471635136,0.006,63845.0,63844.0,0.58408589]
[1724471635338,0.006,63845.0,63844.0,0.60854594]
[1724471635539,0.006,63845.0,63844.0,0.65257367]
[1724471635740,0.006,63845.0,63844.0,0.63300563]
[1724471635943,0.006,63845.0,63844.0,0.60854558]
[1724471636639,0.00023428,63850.0,63849.0,0.078254]
[1724471636941,0.00023428,63850.0,63849.0,0.12228173]
[1724471637939,0.00823428,63850.0,63849.0,0.12428173]
[1724471638347,0.00823428,63850.0,63849.0,0.080254]
[1724471638545,0.00823428,63850.0,63849.0,0.46062152]
[1724471638744,0.00823428,63850.0,63849.0,0.48508092]
[1724471640745,0.00823428,63850.0,63849.0,0.12428092]
[1724471640943,0.00823428,63850.0,63849.0,0.080254]
[1724471641243,0.00823428,63850.0,63849.0,0.4850809]
[1724471643554,0.00823428,63850.0,63849.0,0.1242809]
[1724471643747,0.00823428,63850.0,63849.0,0.4850809]
[1724471644641,0.00823428,63850.0,63849.0,0.46062151]
[1724471644851,0.00823428,63850.0,63849.0,0.4850809]
[1724471647648,0.12690123,63864.0,63849.0,0.4850809]
[1724471647649,0.04672965,63857.0,63849.0,1.47401469]
[1724471647844,0.078237,63863.0,63858.0,0.078243]
[1724471648039,0.078237,63863.0,63856.0,0.3608]
[1724471648040,0.078237,63863.0,63859.0,0.33522211]
[1724471648245,0.078237,63863.0,63860.0,0.16324683]
[1724471648553,0.078237,63863.0,63862.0,0.07805594]
[1724471648753,0.078237,63863.0,63862.0,0.24130277]
[1724471648945,0.078237,63863.0,63862.0,0.12208284]
[1724471649345,0.078237,63863.0,63862.0,0.24127448]
[1724471649550,0.078237,63863.0,63862.0,0.0440269]
[1724471649939,0.078237,63863.0,63862.0,0.4048269]
[1724471650144,0.078237,63863.0,63862.0,0.46331533]
[1724471650348,0.078237,63863.0,63862.0,0.58250672]
[1724471650548,0.078237,63863.0,63862.0,0.38625939]
[1724471650749,0.078237,63863.0,63862.0,0.38625395]
[1724471650944,0.078237,63863.0,63862.0,0.38725395]
[1724471651645,0.03910666,63863.0,63862.0,0.38725395]
[1724471652555,0.03910666,63863.0,63862.0,0.44960303]
[1724471652952,0.03910666,63863.0,63862.0,0.45570885]
[1724471653153,0.03910666,63863.0,63862.0,0.39335977]
[1724471653456,0.03910666,63863.0,63862.0,0.45569693]
[1724471654449,0.03910666,63863.0,63862.0,0.44959111]
[1724471654649,0.03910666,63863.0,63862.0,0.38725395]
[1724471657450,0.03910666,63863.0,63862.0,0.3628]
[1724471657851,0.03910666,63863.0,63862.0,0.3872547]
[1724471658154,0.03910666,63863.0,63862.0,0.44959186]
[1724471660756,0.03910666,63863.0,63862.0,0.44959219]
[1724471661658,0.03910666,63863.0,63862.0,0.46915621]
[1724471661854,0.03910666,63863.0,63862.0,0.40681905]
[1724471662058,0.98710366,63863.0,63862.0,0.02645503]
[1724471662253,0.98710366,63863.0,63862.0,0.002]
[1724471666153,1.03383331,63863.0,63862.0,0.002]
[1724471666359,0.98710366,63863.0,63862.0,0.002]
[1724471667161,0.58710366,63863.0,63862.0,0.002]
[1724471667459,0.98710366,63863.0,63862.0,0.002]
[1724471667656,0.58710366,63863.0,63862.0,0.002]
[1724471669163,0.63383331,63863.0,63862.0,0.002]
[1724471669565,0.16407331,63863.0,63862.0,0.002]
[1724471669967,0.03910666,63863.0,63862.0,0.002]
[1724471676370,0.39990666,63863.0,63862.0,0.002]
[1724471681678,0.39990666,63863.0,63862.0,0.0489]
[1724471682678,0.39990666,63863.0,63862.0,0.09565429]
[1724471682978,0.03910666,63863.0,63862.0,0.09565429]
[1724471683379,0.03910666,63863.0,63862.0,0.10198297]
[1724471684675,0.03910666,63863.0,63862.0,0.07479314]
[1724471684978,0.03910666,63863.0,63862.0,0.07479316]
[1724471685370,0.03910666,63863.0,63862.0,0.07479356]
[1724471685579,0.03910666,63863.0,63862.0,0.05522868]
[1724471686171,0.03910666,63863.0,63862.0,0.07479339]
[1724471686675,0.08569038,63863.0,63862.0,0.07479339]
[1724471686875,0.08569038,63863.0,63862.0,0.06846471]
[1724471688077,0.03910666,63863.0,63862.0,0.06846471]
[1724471689475,0.03910666,63863.0,63862.0,0.13080264]
[1724471691670,0.03910666,63863.0,63862.0,0.11123793]
[1724471691876,0.03910666,63863.0,63862.0,0.13080223]
[1724471693575,0.03910666,63863.0,63862.0,0.0684643]
[1724471694178,0.03910666,63863.0,63862.0,0.0215643]
[1724471694381,0.03910666,63863.0,63862.0,0.08411094]
[1724471694685,0.03910666,63863.0,63862.0,0.0215643]
[1724471696175,0.11734366,63863.0,63862.0,0.0841202]
[1724471696373,0.078241,63860.0,63859.0,0.0625559]
[1724471697276,0.078281,63860.0,63859.0,0.0625559]
[1724471697583,0.156522,63860.0,63859.0,0.0635559]
[1724471697783,0.26570047,63860.0,63859.0,0.0635559]
[1724471698282,0.26570047,63860.0,63859.0,0.0645559]
[1724471699177,0.62650047,63860.0,63859.0,0.0645559]
[1724471699484,0.564222,63860.0,63859.0,0.0645559]
[1724471699671,0.564222,63860.0,63859.0,0.002]
[1724471700274,0.078281,63860.0,63859.0,0.002]
[1724471700789,0.12499434,63860.0,63859.0,0.0973]
[1724471701086,0.078281,63860.0,63859.0,0.17535594]
[1724471702380,0.078281,63860.0,63859.0,0.29456293]
[1724471703282,0.078281,63860.0,63859.0,0.0973]
[1724471703488,0.078281,63860.0,63859.0,0.0504]
[1724471703778,0.078281,63860.0,63859.0,0.12845594]
[1724471704188,0.078281,63860.0,63859.0,0.0504]
[1724471714298,0.078281,63860.0,63859.0,0.002]
[1724471716096,0.078281,63860.0,63859.0,0.19943156]
[1724471718201,0.078281,63860.0,63859.0,0.12120814]
[1724471718202,0.03914937,63860.0,63859.0,0.12120814]
[1724471718402,0.03914937,63860.0,63859.0,0.21505845]
[1724471718894,0.03914937,63860.0,63859.0,0.12120814]
[1724471719295,0.03914937,63860.0,63859.0,0.21505672]
[1724471719495,0.03914937,63860.0,63859.0,0.12120814]
[1724471719697,0.03914937,63860.0,63859.0,0.21503028]
[1724471720096,0.03914937,63860.0,63859.0,0.21403028]
[1724471720296,0.03914937,63860.0,63859.0,0.21503028]
[1724471720495,0.03914937,63860.0,63859.0,0.12119396]
[1724471721098,0.03914937,63860.0,63859.0,0.21503028]
[1724471721304,0.03914937,63860.0,63859.0,0.12119396]
[1724471722597,0.03914937,63860.0,63859.0,0.21503028]
[1724471722999,0.03914937,63860.0,63859.0,0.12119396]
[1724471723206,0.03914937,63860.0,63859.0,0.19938587]
[1724471723394,0.03914937,63860.0,63859.0,0.002]
[1724471723706,0.078245,63856.0,63855.0,0.00023491]
[1724471724001,0.439045,63856.0,63855.0,0.00023491]
[1724471724206,0.57957017,63856.0,63855.0,0.00023491]
[1724471724503,0.51733,63856.0,63855.0,0.00023491]
[1724471724805,0.439085,63856.0,63855.0,0.00023491]
[1724471725105,0.48576589,63856.0,63855.0,0.00023491]
[1724471725303,0.439085,63856.0,63855.0,0.00023491]
[1724471726003,0.44521625,63856.0,63855.0,0.00123491]
[1724471726406,0.44521625,63856.0,63855.0,0.12044813]
[1724471726600,0.08441625,63856.0,63855.0,0.12144813]
[1724471729414,0.08441625,63856.0,63855.0,0.12143597]
[1724471731607,0.08441625,63856.0,63855.0,0.12143714]
[1724471735515,0.08441625,63856.0,63855.0,0.12143951]
[1724471738810,0.08441625,63856.0,63855.0,0.19961229]
[1724471739211,0.08441625,63856.0,63855.0,0.08040769]
[1724471739415,0.16266125,63856.0,63855.0,0.00223491]
[1724471739719,0.08441625,63856.0,63855.0,0.00223491]
[1724471742422,0.16266125,63856.0,63855.0,0.00223491]
[1724471746113,0.08441625,63856.0,63855.0,0.00223491]
[1724471746810,0.16266125,63856.0,63855.0,0.00223491]
[1724471747720,0.08441625,63856.0,63855.0,0.00223491]
[1724471752312,0.44521625,63856.0,63855.0,0.00223491]
[1724471753327,0.52346125,63856.0,63855.0,0.00223491]
[1724471755527,0.57014214,63856.0,63855.0,0.00223491]
[1724471755719,0.49189714,63856.0,63855.0,0.00223491]
[1724471756023,0.44521625,63856.0,63855.0,0.00223491]
[1724471756626,1.1337689,63856.0,63855.0,0.06256142]
[1724471756819,1.07150625,63856.0,63855.0,9.1e-07]
[1724471757421,1.47150625,63856.0,63855.0,0.04691483]
[1724471757622,1.39326125,63856.0,63855.0,0.04691483]
[1724471758537,1.39326125,63856.0,63855.0,9.1e-07]
[1724471758733,1.47150625,63856.0,63855.0,9.1e-07]
[1724471760824,1.75406125,63856.0,63855.0,9.1e-07]
[1724471761127,1.83230625,63856.0,63855.0,9.1e-07]
[1724471762230,1.75406125,63856.0,63855.0,9.1e-07]
[1724471763927,1.03246125,63856.0,63855.0,9.1e-07]
[1724471764127,1.75406125,63856.0,63855.0,9.1e-07]
[1724471764430,1.41628444,63856.0,63855.0,9.1e-07]
[1724471764632,0.88426125,63856.0,63855.0,9.1e-07]
[1724471764933,1.41628444,63856.0,63855.0,9.1e-07]
[1724471765132,0.94648444,63856.0,63855.0,9.1e-07]
[1724471765331,1.41628444,63856.0,63855.0,9.1e-07]
[1724471765533,0.94648444,63856.0,63855.0,9.1e-07]
[1724471765735,1.41628444,63856.0,63855.0,9.1e-07]
[1724471767631,1.81628444,63856.0,63855.0,9.1e-07]
[1724471768423,1.75406125,63856.0,63855.0,9.1e-07]
[1724471769022,1.03246125,63856.0,63855.0,9.1e-07]
[1724471769229,1.75406125,63856.0,63855.0,9.1e-07]
[1724471769433,1.81628613,63856.0,63855.0,9.1e-07]
[1724471770431,1.09468613,63856.0,63855.0,9.1e-07]
[1724471770738,1.81628613,63856.0,63855.0,9.1e-07]
[1724471771236,1.09468613,63856.0,63855.0,9.1e-07]
[1724471771436,1.81628613,63856.0,63855.0,9.1e-07]
[1724471773739,1.09468613,63856.0,63855.0,9.1e-07]
[1724471774139,1.81628613,63856.0,63855.0,9.1e-07]
[1724471774638,1.41628613,63856.0,63855.0,9.1e-07]
[1724471775343,1.35406125,63856.0,63855.0,9.1e-07]
[1724471775934,0.63246125,63856.0,63855.0,9.1e-07]
[1724471776342,1.35406125,63856.0,63855.0,9.1e-07]
[1724471776843,0.63246125,63856.0,63855.0,9.1e-07]
[1724471777236,1.83230625,63856.0,63855.0,9.1e-07]
[1724471777540,0.156506,63850.0,63849.0,0.00023491]
[1724471777838,0.517306,63850.0,63849.0,0.00023491]
[1724471778437,0.517346,63850.0,63849.0,0.00023491]
[1724471778745,0.5795489,63850.0,63849.0,0.00023491]
[1724471778943,0.517346,63850.0,63849.0,0.00023491]
[1724471780646,0.5639994,63850.0,63849.0,0.00023491]
[1724471781238,0.4857464,63850.0,63849.0,0.00023491]
[1724471781444,0.439093,63850.0,63849.0,0.00023491]
[1724471783134,0.078293,63850.0,63849.0,0.00023491]
[1724471783940,0.078293,63850.0,63849.0,0.078432]
[1724471784645,0.078293,63850.0,63849.0,0.00023491]
[1724471785343,0.078293,63850.0,63849.0,0.078432]
[1724471786341,0.078293,63850.0,63849.0,0.19765169]
[1724471787145,0.078293,63850.0,63849.0,0.00023491]
[1724471790146,0.439093,63850.0,63849.0,0.00023491]
[1724471791355,0.4857464,63850.0,63849.0,0.00023491]
[1724471792852,0.439093,63850.0,63849.0,0.00023491]
[1724471794050,0.078293,63850.0,63849.0,0.00023491]
[1724471794757,0.439093,63850.0,63849.0,0.00023491]
[1724471796045,0.517346,63850.0,63849.0,0.00023491]
[1724471796659,0.815599,63850.0,63849.0,0.00023491]
[1724471796958,0.737346,63850.0,63849.0,0.00023491]
[1724471802463,0.376546,63850.0,63849.0,0.00023491]
[1724471802658,1.098146,63850.0,63849.0,0.00023491]
[1724471808668,1.16035342,63850.0,63849.0,0.00023491]
[1724471809562,1.098146,63850.0,63849.0,0.00023491]
[1724471812266,1.23860642,63850.0,63849.0,0.00023491]
[1724471812568,1.098146,63850.0,63849.0,0.00023491]
[1724471813363,1.16035567,63850.0,63849.0,0.00023491]
[1724471814962,1.098146,63850.0,63849.0,0.00023491]
[1724471817373,0.799893,63850.0,63849.0,0.06275791]
[1724471817570,0.84657711,63850.0,63849.0,0.00023491]
[1724471817771,0.799893,63850.0,63849.0,0.00023491]
[1724471819765,0.84657711,63850.0,63849.0,0.00023491]
[1724471821679,0.48577711,63850.0,63849.0,0.00023491]
[1724471822177,0.439093,63850.0,63849.0,0.00023491]
[1724471824287,0.48577711,63850.0,63849.0,0.06278677]
[1724471827080,0.48577711,63850.0,63849.0,0.00023491]
[1724471827081,0.439093,63850.0,63849.0,0.00023491]
[1724471828282,0.48577711,63850.0,63849.0,0.00023491]
[1724471829184,0.439093,63850.0,63849.0,0.00023491]
[1724471829386,0.439093,63850.0,63849.0,0.06278771]
[1724471829784,0.078293,63850.0,63849.0,0.06278771]
[1724471829987,0.439093,63850.0,63849.0,0.06278771]
[1724471831486,0.078293,63850.0,63849.0,0.06278771]
[1724471831684,0.70577608,63850.0,63849.0,0.06279214]
[1724471833287,0.659093,63850.0,63849.0,0.00023491]
[1724471833491,0.7057919,63850.0,63849.0,0.06279607]
[1724471835292,0.659093,63850.0,63849.0,0.06279607]
[1724471835992,0.70579162,63850.0,63849.0,0.06279835]
[1724471837195,0.659093,63850.0,63849.0,0.06279835]
[1724471838398,0.70579249,63850.0,63849.0,0.00023491]
[1724471838797,0.70579249,63850.0,63849.0,0.06280372]
[1724471838798,0.659093,63850.0,63849.0,0.06280372]
[1724471839394,0.659093,63850.0,63849.0,0.00023491]
[1724471839588,0.298293,63850.0,63849.0,0.00023491]
[1724471839798,0.659093,63850.0,63849.0,0.00023491]
[1724471846091,0.298293,63850.0,63849.0,0.00023491]
[1724471846290,0.737346,63850.0,63849.0,0.00023491]
[1724471846495,0.79956218,63850.0,63849.0,0.00023491]
[1724471847598,0.50130918,63850.0,63849.0,0.00023491]
[1724471847800,0.439093,63850.0,63849.0,0.00023491]
[1724471848499,0.439093,63850.0,63849.0,0.11946247]
[1724471849003,0.48581106,63850.0,63849.0,0.11946247]
[1724471850099,0.439093,63850.0,63849.0,0.11946247]
[1724471852001,0.078293,63850.0,63849.0,0.11946247]
[1724471852204,0.439093,63850.0,63849.0,0.11946247]
[1724471852800,0.439093,63850.0,63849.0,0.00023491]
[1724471853002,0.439093,63850.0,63849.0,0.11945573]
[1724471853206,0.439093,63850.0,63849.0,0.20383886]
[1724471855510,0.439093,63850.0,63849.0,0.07846078]
[1724471855707,0.48581106,63850.0,63849.0,0.00023491]
[1724471858200,0.659093,63850.0,63849.0,0.00023491]
[1724471858607,0.737346,63850.0,63849.0,0.00023491]
[1724471860308,0.81510528,63850.0,63849.0,9.1e-07]
[1724471860503,0.76271611,63850.0,63849.0,9.1e-07]
[1724471861100,0.737346,63850.0,63849.0,9.1e-07]
[1724471862007,0.8151216,63850.0,63849.0,9.1e-07]
[1724471862209,0.737346,63850.0,63849.0,9.1e-07]
[1724471863008,0.8151216,63850.0,63849.0,9.1e-07]
[1724471863208,0.737346,63850.0,63849.0,9.1e-07]
[1724471864008,0.8151216,63850.0,63849.0,9.1e-07]
[1724471864208,0.786046,63850.0,63849.0,9.1e-07]
[1724471864505,0.566046,63850.0,63849.0,9.1e-07]
[1724471864703,0.786046,63850.0,63849.0,9.1e-07]
[1724471868100,0.83269273,63850.0,63849.0,9.1e-07]
[1724471870517,0.786046,63850.0,63849.0,9.1e-07]
[1724471870918,0.425246,63850.0,63849.0,9.1e-07]
[1724471871118,0.786046,63850.0,63849.0,9.1e-07]
[1724471871620,0.737346,63850.0,63849.0,9.1e-07]
[1724471872307,0.78399193,63850.0,63849.0,9.1e-07]
[1724471872517,0.737346,63850.0,63849.0,9.1e-07]
[1724471873820,0.439093,63850.0,63849.0,9.1e-07]
[1724471876416,0.078293,63850.0,63849.0,0.06257944]
[1724471876631,0.439093,63850.0,63849.0,0.06257944]
[1724471876819,0.439093,63850.0,63849.0,9.1e-07]
[1724471879324,0.078293,63850.0,63849.0,9.1e-07]
[1724471882521,0.078293,63850.0,63849.0,0.07822678]
[1724471882919,0.078293,63850.0,63849.0,9.1e-07]
[1724471886427,0.376546,63850.0,63849.0,9.1e-07]
[1724471886926,0.43874424,63850.0,63849.0,9.1e-07]
[1724471887136,0.425146,63850.0,63849.0,9.1e-07]
[1724471888435,0.4873284,63850.0,63849.0,9.1e-07]
[1724471888730,0.425146,63850.0,63849.0,9.1e-07]
[1724471888930,0.4873284,63850.0,63849.0,9.1e-07]
[1724471889324,0.425146,63850.0,63849.0,9.1e-07]
[1724471893232,0.785946,63850.0,63849.0,9.1e-07]
[1724471895036,0.8481284,63850.0,63849.0,9.1e-07]
[1724471895236,0.785946,63850.0,63849.0,9.1e-07]
[1724471895730,0.8481284,63850.0,63849.0,9.1e-07]
[1724471896137,0.785946,63850.0,63849.0,9.1e-07]
[1724471899042,0.75433413,63850.0,63849.0,0.04688923]
[1724471899236,0.04668151,63850.0,63849.0,9.1e-07]
[1724471899441,0.078293,63850.0,63849.0,0.07822678]
[1724471900738,0.078293,63850.0,63849.0,9.1e-07]
[1724471903736,0.078293,63850.0,63849.0,0.00619122]
[1724471903937,0.078293,63850.0,63849.0,9.1e-07]
[1724471904640,0.078293,63850.0,63849.0,0.07822678]
[1724471904843,0.078293,63850.0,63849.0,0.119215]
[1724471905046,0.03915562,63850.0,63849.0,0.119215]
[1724471905434,0.03915562,63850.0,63849.0,0.11921324]
[1724471905744,0.03915562,63850.0,63849.0,0.19731493]
[1724471905942,0.03915562,63850.0,63849.0,0.20349092]
[1724471906136,0.03915562,63850.0,63849.0,0.20348687]
[1724471906942,0.03915562,63850.0,63849.0,0.12538863]
[1724471907639,0.03915562,63850.0,63849.0,0.99522863]
[1724471909546,0.03915562,63850.0,63849.0,0.59522863]
[1724471911041,0.03915562,63850.0,63849.0,0.99522863]
[1724471913950,0.03915562,63850.0,63849.0,1.07348263]
[1724471915346,0.03915562,63850.0,63849.0,1.07347849]
[1724471917140,0.00613125,63856.0,63849.0,1.07347849]
[1724471917343,0.07824,63861.0,63852.0,0.51707916]
[1724471917649,0.07824,63861.0,63860.0,0.04681679]
[1724471919244,0.07824,63861.0,63860.0,0.04881679]
[1724471920453,0.07824,63861.0,63860.0,0.002]
[1724471921751,0.0843763,63861.0,63860.0,0.002]
[1724471924462,0.0843763,63861.0,63860.0,0.06442239]
[1724471925251,0.0843763,63861.0,63860.0,0.002]
[1724471925754,0.0843763,63861.0,63860.0,0.06445184]
[1724471925954,0.0843763,63861.0,63860.0,0.002]
[1724471926263,0.07824,63861.0,63860.0,0.47176]
[1724471927358,0.07824,63861.0,63860.0,0.54978916]
[1724471927561,0.07824,63861.0,63860.0,0.47176]
[1724471927962,0.07824,63861.0,63860.0,0.55]
[1724471928164,0.07824,63861.0,63860.0,0.74722612]
[1724471929567,0.07824,63861.0,63860.0,0.66919696]
[1724471930059,0.07824,63861.0,63860.0,0.66919223]
[1724471933677,0.07824,63861.0,63860.0,0.19943223]
[1724471935074,0.07824,63861.0,63860.0,0.19942578]
[1724471936269,0.00023491,63862.0,63861.0,0.078239]
[1724471936474,0.00023491,63862.0,63861.0,0.19742478]
[1724471937573,0.00023491,63862.0,63861.0,0.19842478]
[1724471938769,0.00023491,63862.0,63861.0,0.19942478]
[1724471939773,0.00023491,63862.0,63861.0,0.29311942]
[1724471939968,0.00023491,63862.0,63861.0,0.19942478]
[1724471942471,0.00023491,63862.0,63861.0,0.56022478]
[1724471942671,0.07847291,63862.0,63861.0,0.12118578]
[1724471942969,0.17047291,63862.0,63861.0,0.002]
[1724471943471,0.17047291,63862.0,63861.0,0.06447216]
[1724471943776,0.24871091,63862.0,63861.0,0.06447216]